fUSD/lending_fUSD_20260520
["ID","MTS","AMOUNT","RATE_DAILY","PERIOD"]
[422668439,1779226244000,-150.0,0.00014786,2]
[422668444,1779226244000,-155.22131517,0.00014805,2]
[422668443,1779226244000,-500.0,0.000148,5]
[422668445,1779226244000,-150.0,0.00014808,2]
[422668507,1779226245000,-500.0,0.00014999,2]
[422668505,1779226245000,-500.0,0.00014999,2]
[422668504,1779226245000,-500.0,0.00014999,2]
[422668501,1779226245000,-500.0,0.00014999,2]
[422668500,1779226245000,-500.0,0.00014999,2]
[422668497,1779226245000,-151.0,0.00014997,2]
[422668499,1779226245000,-500.0,0.00014999,2]
[422668502,1779226245000,-500.0,0.00014999,2]
[422668513,1779226245000,-606.24,0.00014999,2]
[422668521,1779226245000,-606.24,0.00014999,2]
[422668511,1779226245000,-500.0,0.00014999,2]
[422668510,1779226245000,-500.0,0.00014999,2]
[422668514,1779226245000,-606.24,0.00014999,2]
[422668518,1779226245000,-606.24,0.00014999,2]
[422668517,1779226245000,-606.24,0.00014999,2]
[422668503,1779226245000,-500.0,0.00014999,2]
[422668520,1779226245000,-606.24,0.00014999,2]
[422668506,1779226245000,-500.0,0.00014999,2]
[422668488,1779226245000,-152.10400648,0.00014986,2]
[422668509,1779226245000,-500.0,0.00014999,2]
[422668482,1779226245000,-150.0,0.00014951,2]
[422668481,1779226245000,-155.22131517,0.00014941,2]
[422668483,1779226245000,-155.22131517,0.00014956,2]
[422668484,1779226245000,-155.22131517,0.00014971,2]
[422668486,1779226245000,-284.58525916,0.00014986,2]
[422668485,1779226245000,-18397.64,0.0001498,2]
[422668487,1779226245000,-151.4416791,0.00014986,2]
[422668491,1779226245000,-153.09099208,0.00014986,2]
[422668495,1779226245000,-170.41262241,0.00014986,2]
[422668496,1779226245000,-155.22131517,0.00014986,2]
[422668494,1779226245000,-225.67224447,0.00014986,2]
[422668492,1779226245000,-153.99235667,0.00014986,2]
[422668493,1779226245000,-152.35107503,0.00014986,2]
[422668490,1779226245000,-152.75252402,0.00014986,2]
[422668489,1779226245000,-254.67783396,0.00014986,2]
[422668498,1779226245000,-151.0,0.00014997,2]
[422668508,1779226245000,-500.0,0.00014999,2]
[422668515,1779226245000,-606.24,0.00014999,2]
[422668512,1779226245000,-508.68888162,0.00014999,2]
[422668535,1779226245000,-502.95676668,0.00014999,2]
[422668516,1779226245000,-606.24,0.00014999,2]
[422668544,1779226245000,-2100.0,0.00015,2]
[422668547,1779226245000,-144.09731001,0.00013711,2]
[422668546,1779226245000,-500.0,0.00013698,2]
[422668548,1779226245000,-355.90268999,0.00013711,2]
[422668551,1779226245000,-500.0,0.00014999,2]
[422668552,1779226245000,-500.0,0.00014999,2]
[422668554,1779226245000,-500.0,0.00014999,2]
[422668545,1779226245000,-1300.0,0.00015,2]
[422668549,1779226245000,-500.0,0.00014469,2]
[422668556,1779226245000,-4044.09731,0.00015,2]
[422668553,1779226245000,-500.0,0.00014999,2]
[422668550,1779226245000,-500.0,0.00014999,2]
[422668558,1779226245000,-500.0,0.00014999,2]
[422668557,1779226245000,-500.0,0.00014999,2]
[422668559,1779226245000,-500.0,0.00014999,2]
[422668519,1779226245000,-606.24,0.00014999,2]
[422668555,1779226245000,-500.0,0.00014999,2]
[422668542,1779226245000,-666.0,0.00014999,2]
[422668537,1779226245000,-500.0,0.00014999,2]
[422668525,1779226245000,-606.24,0.00014999,2]
[422668522,1779226245000,-606.24,0.00014999,2]
[422668523,1779226245000,-606.24,0.00014999,2]
[422668526,1779226245000,-606.24,0.00014999,2]
[422668529,1779226245000,-500.0,0.00014999,2]
[422668533,1779226245000,-500.0,0.00014999,2]
[422668531,1779226245000,-500.0,0.00014999,2]
[422668543,1779226245000,-3566455.33162607,0.00015,2]
[422668532,1779226245000,-291.72783795,0.00014999,2]
[422668524,1779226245000,-606.24,0.00014999,2]
[422668530,1779226245000,-500.0,0.00014999,2]
[422668536,1779226245000,-500.0,0.00014999,2]
[422668539,1779226245000,-300.0,0.00014999,2]
[422668540,1779226245000,-300.0,0.00014999,2]
[422668534,1779226245000,-500.0,0.00014999,2]
[422668538,1779226245000,-531.04142936,0.00014999,2]
[422668541,1779226245000,-300.0,0.00014999,2]
[422668528,1779226245000,-500.0,0.00014999,2]
[422668527,1779226245000,-606.36,0.00014999,2]
[422668562,1779226246000,-10533.59999999,0.00015,2]
[422668561,1779226246000,-6801.82001056,0.00015,2]
[422668560,1779226246000,-500.0,0.00014999,2]
[422668578,1779226246000,-498.07532459,0.00015,2]
[422668577,1779226246000,-192.02289105,0.000149,2]
[422668579,1779226246000,-46419.34445515,0.00015,2]
[422668582,1779226349000,500.0,9.927e-05,2]
[422668584,1779226436000,157.3,7.16e-05,2]
[422668586,1779226437000,157.3,9.912e-05,2]
[422668585,1779226437000,157.3,8.536e-05,2]
[422668587,1779226530000,1000.0,0.0003,120]
[422668600,1779226766000,-208.58623393,0.00010568,2]
[422668598,1779226766000,-160.0,0.00010568,2]
[422668596,1779226766000,-161.71443458,0.00010515,2]
[422668595,1779226766000,-161.71443458,0.00010515,2]
[422668592,1779226766000,-250.0,0.00010464,2]
[422668593,1779226766000,-250.0,0.00010504,2]
[422668601,1779226766000,-150.0,0.00010673,2]
[422668589,1779226766000,-290.26899026,0.00010315,2]
[422668590,1779226766000,-178.02638462,0.00010414,2]
[422668594,1779226766000,-1200.0,0.00010514,2]
[422668591,1779226766000,-230.6912,0.00010415,2]
[422668597,1779226766000,-150.0,0.00010568,2]
[422668612,1779226766000,-1000.0,0.00011631,2]
[422668613,1779226766000,-1000.0,0.00011665,2]
[422668614,1779226766000,-150.0,0.00011665,2]
[422668602,1779226766000,-150.0,0.00010777,2]
[422668611,1779226766000,-8238.17,0.00011621,2]
[422668610,1779226766000,-300.0,0.0001162,2]
[422668608,1779226766000,-800.0,0.00011484,2]
[422668599,1779226766000,-215.15951567,0.00010568,2]
[422668607,1779226766000,-250.0,0.00011456,2]
[422668604,1779226766000,-150.0,0.00010987,2]
[422668606,1779226766000,-157.3,0.00011288,2]
[422668603,1779226766000,-150.0,0.00010882,2]
[422668605,1779226766000,-193.0,0.00011091,2]
[422668609,1779226766000,-1680.0,0.00011565,2]
[422668615,1779226767000,-15471.36880636,0.00011666,2]
[422668617,1779227244000,204.95,6.181e-05,2]
[422668622,1779227245000,204.95,7.744e-05,2]
[422668621,1779227245000,204.95,7.432e-05,2]
[422668620,1779227245000,204.95,7.119e-05,2]
[422668619,1779227245000,204.95,6.807e-05,2]
[422668618,1779227245000,204.95,6.494e-05,2]
[422668623,1779227246000,204.95,8.057e-05,2]
[422668624,1779227246000,204.95,8.369e-05,2]
[422668626,1779227246000,204.95,8.995e-05,2]
[422668625,1779227246000,204.95,8.682e-05,2]
[422668627,1779227246000,204.95,9.307e-05,2]
[422668629,1779227247000,204.95,9.932e-05,2]
[422668628,1779227247000,204.95,9.62e-05,2]
[422668630,1779227340000,1000.0,0.0003008,120]
[422668641,1779227431000,-204.95,0.00010245,2]
[422668642,1779227431000,-87.34054004,0.00010558,2]
[422668644,1779227431000,-150.0,0.00010665,2]
[422668645,1779227431000,-198.63,0.00010667,2]
[422668643,1779227431000,-117.60945996,0.00010558,2]
[422668647,1779227431000,-87.02975996,0.0001077,2]
[422668648,1779227431000,-204.95,0.0001087,2]
[422668649,1779227431000,-160.31,0.00010898,2]
[422668650,1779227431000,-618.62864004,0.0001113,2]
[422668646,1779227431000,-62.97024004,0.0001077,2]
[422668653,1779227432000,-300.0,0.00011465,2]
[422668655,1779227432000,-9999.99,0.00011465,2]
[422668652,1779227432000,-204.95,0.00011183,2]
[422668651,1779227432000,-2423.97135996,0.0001113,2]
[422668654,1779227432000,-1200.0,0.00011465,2]
[422668702,1779227433000,-500.0,0.00012058,2]
[422668706,1779227433000,-500.0,0.00012058,2]
[422668707,1779227433000,-500.0,0.00012058,2]
[422668704,1779227433000,-500.0,0.00012058,2]
[422668722,1779227433000,-500.0,0.00012058,2]
[422668701,1779227433000,-500.0,0.00012058,2]
[422668700,1779227433000,-500.0,0.00012058,2]
[422668699,1779227433000,-150.0,0.00011932,2]
[422668698,1779227433000,-5029.43721929,0.00011929,2]
[422668696,1779227433000,-500.0,0.00011843,2]
[422668705,1779227433000,-500.0,0.00012058,2]
[422668703,1779227433000,-500.0,0.00012058,2]
[422668708,1779227433000,-500.0,0.00012058,2]
[422668713,1779227433000,-500.0,0.00012058,2]
[422668709,1779227433000,-500.0,0.00012058,2]
[422668712,1779227433000,-500.0,0.00012058,2]
[422668711,1779227433000,-500.0,0.00012058,2]
[422668720,1779227433000,-500.0,0.00012058,2]
[422668721,1779227433000,-500.0,0.00012058,2]
[422668714,1779227433000,-500.0,0.00012058,2]
[422668719,1779227433000,-500.0,0.00012058,2]
[422668697,1779227433000,-926.48,0.00011911,2]
[422668715,1779227433000,-500.0,0.00012058,2]
[422668717,1779227433000,-500.0,0.00012058,2]
[422668718,1779227433000,-500.0,0.00012058,2]
[422668716,1779227433000,-500.0,0.00012058,2]
[422668723,1779227433000,-500.0,0.00012058,2]
[422668710,1779227433000,-500.0,0.00012058,2]
[422668695,1779227433000,-204.95,0.00011808,2]
[422668684,1779227433000,-1000.0,0.00011665,2]
[422668692,1779227433000,-20002.44,0.0001173,2]
[422668668,1779227433000,-299.99,0.00011466,2]
[422668665,1779227433000,-999.99,0.00011466,2]
[422668656,1779227433000,-24999.99,0.00011465,2]
[422668657,1779227433000,-9999.99,0.00011465,2]
[422668667,1779227433000,-9999.99,0.00011466,2]
[422668659,1779227433000,-9999.99,0.00011466,2]
[422668663,1779227433000,-4999.99,0.00011466,2]
[422668661,1779227433000,-150.99,0.00011466,2]
[422668670,1779227433000,-204.95,0.00011495,2]
[422668669,1779227433000,-2932.287,0.00011466,2]
[422668672,1779227433000,-1008.37916785,0.00011565,2]
[422668671,1779227433000,-14387.58568603,0.00011556,2]
[422668674,1779227433000,-6803.7659,0.00011566,2]
[422668693,1779227433000,-150.0,0.00011769,2]
[422668673,1779227433000,-150.0,0.00011565,2]
[422668678,1779227433000,-250.0,0.00011596,2]
[422668676,1779227433000,-250.0,0.00011566,2]
[422668680,1779227433000,-167.37842771,0.00011607,2]
[422668679,1779227433000,-160.93990209,0.00011607,2]
[422668677,1779227433000,-160.31,0.00011579,2]
[422668682,1779227433000,-5029.43721929,0.00011612,2]
[422668681,1779227433000,-160.93990208,0.00011607,2]
[422668688,1779227433000,-160.0,0.00011727,2]
[422668689,1779227433000,-215.15951567,0.00011727,2]
[422668686,1779227433000,-96861.39119364,0.00011666,2]
[422668690,1779227433000,-208.58623393,0.00011727,2]
[422668691,1779227433000,-500.0,0.0001173,2]
[422668694,1779227433000,-800.0,0.00011772,2]
[422668675,1779227433000,-99130.5674,0.00011566,2]
[422668724,1779227433000,-500.0,0.00012058,2]
[422668748,1779227433000,-250.0,0.00012776,2]
[422668728,1779227433000,-800.0,0.00012059,2]
[422668760,1779227433000,-500.0,0.00013224,2]
[422668762,1779227433000,-166.66,0.0001339,2]
[422668769,1779227433000,-150.0,0.00013488,2]
[422668761,1779227433000,-13058.92021261,0.000133,2]
[422668763,1779227433000,-926.48,0.00013399,2]
[422668765,1779227433000,-150.0,0.00013488,2]
[422668766,1779227433000,-151.300204,0.00013488,2]
[422668764,1779227433000,-150.0,0.00013488,2]
[422668767,1779227433000,-150.0,0.00013488,2]
[422668768,1779227433000,-150.0,0.00013488,2]
[422668770,1779227433000,-150.0,0.00013488,2]
[422668772,1779227433000,-150.0,0.00013488,2]
[422668773,1779227433000,-150.0,0.00013488,2]
[422668774,1779227433000,-150.0,0.00013488,2]
[422668775,1779227433000,-155.22131517,0.00013488,2]
[422668777,1779227433000,-155.22131517,0.00013503,2]
[422668776,1779227433000,-500.0,0.00013498,2]
[422668778,1779227433000,-5029.43721929,0.00013512,2]
[422668783,1779227433000,-155.22131517,0.00013548,2]
[422668782,1779227433000,-150.0,0.00013545,2]
[422668779,1779227433000,-155.22131517,0.00013518,2]
[422668780,1779227433000,-150.0,0.00013523,2]
[422668781,1779227433000,-155.22131517,0.00013533,2]
[422668784,1779227433000,-150.0,0.00013559,2]
[422668786,1779227433000,-150.0,0.00013567,2]
[422668785,1779227433000,-155.22131517,0.00013563,2]
[422668725,1779227433000,-500.0,0.00012058,2]
[422668755,1779227433000,-13058.92021261,0.0001298,2]
[422668757,1779227433000,-166.66,0.00012988,2]
[422668771,1779227433000,-150.0,0.00013488,2]
[422668758,1779227433000,-151.62,0.00013072,2]
[422668759,1779227433000,-5029.43721929,0.00013195,2]
[422668731,1779227433000,-5029.43721929,0.00012245,2]
[422668729,1779227433000,-204.95,0.0001212,2]
[422668730,1779227433000,-166.66,0.00012183,2]
[422668727,1779227433000,-500.0,0.00012058,2]
[422668732,1779227433000,-160.31,0.0001226,2]
[422668733,1779227433000,-176.55,0.00012307,2]
[422668734,1779227433000,-800.0,0.00012346,2]
[422668735,1779227433000,-2000.0,0.00012402,2]
[422668736,1779227433000,-500.0,0.00012402,2]
[422668738,1779227433000,-166.66,0.00012585,2]
[422668737,1779227433000,-5029.43721929,0.00012562,2]
[422668740,1779227433000,-543.23,0.000126,2]
[422668741,1779227433000,-1680.0,0.00012611,2]
[422668726,1779227433000,-500.0,0.00012058,2]
[422668742,1779227433000,-255.0,0.00012629,2]
[422668739,1779227433000,-420.0,0.00012593,2]
[422668756,1779227433000,-170.0,0.0001298,2]
[422668753,1779227433000,-160.31,0.00012941,2]
[422668751,1779227433000,-275.27,0.00012877,2]
[422668749,1779227433000,-23585.19473762,0.00012783,2]
[422668752,1779227433000,-5029.43721929,0.00012879,2]
[422668754,1779227433000,-500.0,0.0001295,2]
[422668747,1779227433000,-250.0,0.00012722,2]
[422668746,1779227433000,-7364.96,0.00012715,2]
[422668744,1779227433000,-13058.92021268,0.0001266,2]
[422668745,1779227433000,-500.0,0.00012676,2]
[422668743,1779227433000,-800.0,0.00012633,2]
[422668750,1779227433000,-1599.65526238,0.00012783,2]
[422668831,1779227434000,-500.0,0.00013698,2]
[422668827,1779227434000,-531.04142936,0.00013698,2]
[422668830,1779227434000,-500.0,0.00013698,2]
[422668816,1779227434000,-500.0,0.00013698,2]
[422668824,1779227434000,-500.0,0.00013698,2]
[422668822,1779227434000,-500.0,0.00013698,2]
[422668825,1779227434000,-500.0,0.00013698,2]
[422668823,1779227434000,-500.0,0.00013698,2]
[422668821,1779227434000,-500.0,0.00013698,2]
[422668815,1779227434000,-291.72783795,0.00013698,2]
[422668828,1779227434000,-500.0,0.00013698,2]
[422668826,1779227434000,-500.0,0.00013698,2]
[422668829,1779227434000,-500.0,0.00013698,2]
[422668837,1779227434000,-500.0,0.00013698,2]
[422668833,1779227434000,-500.0,0.00013698,2]
[422668834,1779227434000,-500.0,0.00013698,2]
[422668835,1779227434000,-500.0,0.00013698,2]
[422668836,1779227434000,-500.0,0.00013698,2]
[422668838,1779227434000,-500.0,0.00013698,2]
[422668840,1779227434000,-966.33,0.00013698,2]
[422668841,1779227434000,-966.33,0.00013698,2]
[422668839,1779227434000,-502.95676668,0.00013698,2]
[422668842,1779227434000,-966.33,0.00013698,2]
[422668844,1779227434000,-966.33,0.00013698,2]
[422668843,1779227434000,-966.33,0.00013698,2]
[422668845,1779227434000,-966.33,0.00013698,2]
[422668817,1779227434000,-500.0,0.00013698,2]
[422668832,1779227434000,-500.0,0.00013698,2]
[422668819,1779227434000,-500.0,0.00013698,2]
[422668846,1779227434000,-966.33,0.00013698,2]
[422668811,1779227434000,-500.0,0.00013698,2]
[422668787,1779227434000,-155.22131517,0.00013578,2]
[422668791,1779227434000,-150.0,0.00013595,2]
[422668789,1779227434000,-155.22131517,0.00013594,2]
[422668788,1779227434000,-150.0,0.00013588,2]
[422668790,1779227434000,-150.0,0.00013595,2]
[422668792,1779227434000,-1000.0,0.000136,4]
[422668793,1779227434000,-150.0,0.00013603,2]
[422668795,1779227434000,-13058.92021261,0.0001362,2]
[422668794,1779227434000,-155.22131517,0.00013609,2]
[422668797,1779227434000,-155.22131517,0.00013624,2]
[422668799,1779227434000,-155.22131517,0.00013639,2]
[422668801,1779227434000,-150.0,0.00013654,2]
[422668800,1779227434000,-150.0,0.00013645,2]
[422668803,1779227434000,-150.0,0.00013661,2]
[422668805,1779227434000,-155.22131517,0.00013669,2]
[422668798,1779227434000,-150.0,0.0001363,2]
[422668802,1779227434000,-155.22131517,0.00013654,2]
[422668804,1779227434000,-150.0,0.00013666,2]
[422668806,1779227434000,-150.0,0.00013675,2]
[422668807,1779227434000,-155.22131517,0.00013684,2]
[422668809,1779227434000,-500.0,0.00013698,2]
[422668808,1779227434000,-150.0,0.00013687,2]
[422668812,1779227434000,-500.0,0.00013698,2]
[422668818,1779227434000,-500.0,0.00013698,2]
[422668810,1779227434000,-500.0,0.00013698,2]
[422668813,1779227434000,-500.0,0.00013698,2]
[422668820,1779227434000,-500.0,0.00013698,2]
[422668814,1779227434000,-500.0,0.00013698,2]
[422668847,1779227434000,-966.33,0.00013698,2]
[422668796,1779227434000,-160.31,0.00013622,2]
[422668853,1779227434000,-966.33,0.00013698,2]
[422668875,1779227434000,-2025.12,0.00013698,2]
[422668883,1779227434000,-2025.12,0.00013698,2]
[422668885,1779227434000,-2025.12,0.00013698,2]
[422668895,1779227434000,-500.0,0.00013698,2]
[422668891,1779227434000,-2025.2698039,0.00013698,2]
[422668889,1779227434000,-2025.12,0.00013698,2]
[422668887,1779227434000,-2025.12,0.00013698,2]
[422668886,1779227434000,-2025.12,0.00013698,2]
[422668896,1779227434000,-500.0,0.00013698,2]
[422668888,1779227434000,-2025.12,0.00013698,2]
[422668884,1779227434000,-2025.12,0.00013698,2]
[422668894,1779227434000,-500.0,0.00013698,2]
[422668893,1779227434000,-500.0,0.00013698,2]
[422668882,1779227434000,-2025.12,0.00013698,2]
[422668890,1779227434000,-2025.12,0.00013698,2]
[422668898,1779227434000,-508.71985142,0.00013698,2]
[422668908,1779227434000,-500.0,0.00013698,2]
[422668909,1779227434000,-500.0,0.00013698,2]
[422668900,1779227434000,-500.0,0.00013698,2]
[422668901,1779227434000,-500.0,0.00013698,2]
[422668897,1779227434000,-500.0,0.00013698,2]
[422668899,1779227434000,-500.0,0.00013698,2]
[422668904,1779227434000,-500.0,0.00013698,2]
[422668903,1779227434000,-500.0,0.00013698,2]
[422668906,1779227434000,-500.0,0.00013698,2]
[422668905,1779227434000,-500.0,0.00013698,2]
[422668907,1779227434000,-500.0,0.00013698,2]
[422668848,1779227434000,-966.33,0.00013698,2]
[422668892,1779227434000,-500.0,0.00013698,2]
[422668876,1779227434000,-2025.12,0.00013698,2]
[422668902,1779227434000,-500.0,0.00013698,2]
[422668874,1779227434000,-2025.12,0.00013698,2]
[422668877,1779227434000,-1445.79670871,0.00013698,2]
[422668850,1779227434000,-966.33,0.00013698,2]
[422668851,1779227434000,-966.33,0.00013698,2]
[422668849,1779227434000,-966.33,0.00013698,2]
[422668852,1779227434000,-966.33,0.00013698,2]
[422668854,1779227434000,-966.33,0.00013698,2]
[422668855,1779227434000,-966.33,0.00013698,2]
[422668857,1779227434000,-966.33,0.00013698,2]
[422668859,1779227434000,-966.33,0.00013698,2]
[422668865,1779227434000,-500.0,0.00013698,2]
[422668866,1779227434000,-508.97372054,0.00013698,2]
[422668860,1779227434000,-966.33,0.00013698,2]
[422668858,1779227434000,-966.33,0.00013698,2]
[422668867,1779227434000,-2025.12,0.00013698,2]
[422668856,1779227434000,-966.33,0.00013698,2]
[422668863,1779227434000,-966.37366133,0.00013698,2]
[422668878,1779227434000,-579.32329129,0.00013698,2]
[422668862,1779227434000,-966.33,0.00013698,2]
[422668879,1779227434000,-2025.12,0.00013698,2]
[422668881,1779227434000,-2025.12,0.00013698,2]
[422668880,1779227434000,-2025.12,0.00013698,2]
[422668871,1779227434000,-2025.12,0.00013698,2]
[422668872,1779227434000,-2025.12,0.00013698,2]
[422668873,1779227434000,-2025.12,0.00013698,2]
[422668870,1779227434000,-2025.12,0.00013698,2]
[422668864,1779227434000,-500.0,0.00013698,2]
[422668868,1779227434000,-2025.12,0.00013698,2]
[422668869,1779227434000,-2025.12,0.00013698,2]
[422668861,1779227434000,-966.33,0.00013698,2]
[422668935,1779227435000,-500.0,0.00013698,2]
[422668934,1779227435000,-500.0,0.00013698,2]
[422668931,1779227435000,-411.41615637,0.00013698,2]
[422668929,1779227435000,-500.0,0.00013698,2]
[422668932,1779227435000,-500.0,0.00013698,2]
[422668933,1779227435000,-500.0,0.00013698,2]
[422668936,1779227435000,-500.0,0.00013698,2]
[422668943,1779227435000,-500.0,0.00013698,2]
[422668939,1779227435000,-500.0,0.00013698,2]
[422668938,1779227435000,-500.0,0.00013698,2]
[422668940,1779227435000,-500.0,0.00013698,2]
[422668941,1779227435000,-500.0,0.00013698,2]
[422668942,1779227435000,-509.06477309,0.00013698,2]
[422668928,1779227435000,-500.0,0.00013698,2]
[422668946,1779227435000,-500.0,0.00013698,2]
[422668937,1779227435000,-500.0,0.00013698,2]
[422668930,1779227435000,-500.0,0.00013698,2]
[422668914,1779227435000,-500.0,0.00013698,2]
[422668927,1779227435000,-500.0,0.00013698,2]
[422668944,1779227435000,-500.0,0.00013698,2]
[422668910,1779227435000,-500.0,0.00013698,2]
[422668912,1779227435000,-500.0,0.00013698,2]
[422668911,1779227435000,-500.0,0.00013698,2]
[422668915,1779227435000,-500.0,0.00013698,2]
[422668916,1779227435000,-500.0,0.00013698,2]
[422668913,1779227435000,-500.0,0.00013698,2]
[422668925,1779227435000,-500.0,0.00013698,2]
[422668918,1779227435000,-500.0,0.00013698,2]
[422668917,1779227435000,-500.0,0.00013698,2]
[422668919,1779227435000,-500.0,0.00013698,2]
[422668922,1779227435000,-500.0,0.00013698,2]
[422668921,1779227435000,-500.0,0.00013698,2]
[422668923,1779227435000,-500.0,0.00013698,2]
[422668926,1779227435000,-500.0,0.00013698,2]
[422668924,1779227435000,-500.0,0.00013698,2]
[422668920,1779227435000,-500.0,0.00013698,2]
[422668945,1779227435000,-500.0,0.00013698,2]
[422668948,1779227435000,-500.0,0.00013698,2]
[422668949,1779227435000,-500.0,0.00013698,2]
[422668971,1779227435000,-2000.0,0.000137,5]
[422668973,1779227435000,-150.0,0.00013702,2]
[422668972,1779227435000,-150.0,0.00013702,2]
[422668970,1779227435000,-155.22131517,0.000137,2]
[422668969,1779227435000,-166.66,0.00013699,2]
[422668974,1779227435000,-155.22131517,0.00013715,2]
[422668975,1779227435000,-150.0,0.00013718,2]
[422668968,1779227435000,-7264.1,0.00013699,2]
[422668976,1779227435000,-150.0,0.00013724,2]
[422668982,1779227435000,-150.0,0.00013773,2]
[422668978,1779227435000,-150.0,0.00013737,2]
[422668979,1779227435000,-155.22131517,0.00013745,2]
[422668983,1779227435000,-155.22131517,0.00013775,2]
[422668984,1779227435000,-150.0,0.00013776,2]
[422668981,1779227435000,-500.0,0.00013772,2]
[422668947,1779227435000,-606.24,0.00013698,2]
[422668977,1779227435000,-155.22131517,0.0001373,2]
[422668966,1779227435000,-153.75,0.00013699,2]
[422668980,1779227435000,-155.22131517,0.0001376,2]
[422668964,1779227435000,-221.4,0.00013699,2]
[422668967,1779227435000,-768.78,0.00013699,2]
[422668950,1779227435000,-500.0,0.00013698,2]
[422668951,1779227435000,-500.0,0.00013698,2]
[422668954,1779227435000,-500.0,0.00013698,2]
[422668955,1779227435000,-371.97687373,0.00013698,2]
[422668956,1779227435000,-170.0,0.00013698,2]
[422668957,1779227435000,-170.0,0.00013698,2]
[422668953,1779227435000,-500.0,0.00013698,2]
[422668958,1779227435000,-170.0,0.00013698,2]
[422668959,1779227435000,-174.36372684,0.00013698,2]
[422668961,1779227435000,-500.0,0.00013698,2]
[422668960,1779227435000,-500.0,0.00013698,2]
[422668963,1779227435000,-200.0,0.00013699,2]
[422668962,1779227435000,-2500.0,0.00013699,2]
[422668952,1779227435000,-500.0,0.00013698,2]
[422668965,1779227435000,-184.5,0.00013699,2]
[422669024,1779227436000,-500.0,0.00013889,2]
[422669021,1779227436000,-1098.07046975,0.00013889,5]
[422669020,1779227436000,-1098.07046975,0.00013889,5]
[422669022,1779227436000,-1098.07046975,0.00013889,5]
[422669019,1779227436000,-1098.07046974,0.00013889,5]
[422669014,1779227436000,-394.98195229,0.0001388,2]
[422669018,1779227436000,-150.0,0.00013887,2]
[422669016,1779227436000,-155.22131517,0.00013881,2]
[422669036,1779227436000,-500.0,0.00013889,2]
[422669017,1779227436000,-150.0,0.00013882,2]
[422669023,1779227436000,-500.0,0.00013889,2]
[422669026,1779227436000,-500.0,0.00013889,2]
[422669033,1779227436000,-500.0,0.00013889,2]
[422669027,1779227436000,-500.0,0.00013889,2]
[422669029,1779227436000,-500.0,0.00013889,2]
[422669042,1779227436000,-500.0,0.00013889,2]
[422669028,1779227436000,-500.0,0.00013889,2]
[422669031,1779227436000,-500.0,0.00013889,2]
[422669030,1779227436000,-500.0,0.00013889,2]
[422669034,1779227436000,-1098.07046975,0.00013889,5]
[422669035,1779227436000,-500.0,0.00013889,2]
[422669032,1779227436000,-500.0,0.00013889,2]
[422669038,1779227436000,-500.0,0.00013889,2]
[422669048,1779227436000,-505.50097699,0.00013889,2]
[422669015,1779227436000,-150.0,0.0001388,2]
[422669025,1779227436000,-500.0,0.00013889,2]
[422669013,1779227436000,-2351.0,0.00013872,2]
[422668994,1779227436000,-166.66,0.00013792,2]
[422669011,1779227436000,-6049.0,0.00013863,2]